[Event "FIDE WSTC Open 50 2025"]
[Site "Prague"]
[Date "2025.02.18"]
[Round "2.32"]
[White "Polster, Wolfgang"]
[Black "Sanger, Mark"]
[Result "0-1"]
[Annotator "TA"]
[ECO "A20"]
[WhiteElo "2131"]
[BlackElo "2135"]
[PlyCount "58"]
[EventDate "2025.02.17"]
[EventType "team-tourn"]
[EventCountry "CZE"]
[SourceTitle "playchess.com"]
[Source "ChessBase"]
[SourceQuality "1"]
[TimeControl "40/5400+30:1800+30"]

{[%evp 10,58,29,29,50,39,45,31,26,47,37,33,50,43,81,55,61,50,45,33,20,0,0,0,0,-107,-79,-85,0,-261,-265,-264,-265,-260,-275,-343,-323,-324,-329,-314,-306,-557,-548,-536,-543,-923,-650,-935,-711,-704,-707]} 1. c4 {[%emt 0:06:35]} e5 {[%emt 0:00:11]} 2. g3 {[%emt 0:00:29]} Nc6 {[%emt 0:00:15]} 3. Bg2 {[%emt 0:00:28]} f5 {[%emt 0:00:20]} 4. d3 {[%emt 0:01:31]} Nf6 {[%emt 0:00:18]} 5. Nc3 {[%emt 0:01:49]} Bc5 {[%emt 0:00:58]} 6. e3 {[%emt 0:01:16]} a6 {[%emt 0:04:54] A25: English Opening vs King's Indian with ...Nc6 but without early d3.} 7. Nge2 {[%emt 0:01:02]} Ba7 {[%emt 0:00:20]} 8. Rb1 {[%emt 0:02:31]} d6 {[%emt 0:02:17] White is slightly better.} 9. b4 {[%emt 0:01:20]} O-O {[%emt 0:02:10]} 10. O-O {[%emt 0:01:09]} Qe8 {[%emt 0:00:43]} 11. a4 $146 {[%emt 0:14:29]} (11. b5 axb5 12. Nxb5 Bb8 13. Nec3 Ne7 14. Qb3 Kh8 15. Ba3 Qd8 16. d4 e4 17. d5 {0-1 Kubat,P (2010)-Taranenko,E (2204) Pardubice Czech op-B 29th 2018 (3)}) 11... f4 {[%emt 0:00:43]} 12. b5 {[%emt 0:09:33]} axb5 {[%emt 0:09:46]} 13. axb5 {[%emt 0:02:53]} (13. cxb5 {seems wilder.} fxg3 14. bxc6 gxh2+ 15. Kh1) 13... Ne7 {[%emt 0:00:57][%cal Bc6e7,Be7f5,Bf5d4][%mdl 32]} 14. exf4 {[%emt 0:08:53]} (14. gxf4 {simplifies} Ng6 15. Nd5 Nxd5 16. Bxd5+ Kh8 17. Kh1) 14... Qh5 {[%emt 0:10:07] Black sacrificed a pawn} 15. Ne4 {[%emt 0:20:08]} Bg4 {[%emt 0:14:25]} 16. Rb2 {[%emt 0:01:34]} Nf5 {[%emt 0:01:31] [#]} 17. c5 {[%emt 0:06:53]} Nd4 $17 {[%emt 0:06:07]} 18. f3 {[%emt 0:01:20]} Bxf3 {[%emt 0:08:14] Black is much more active.} (18... Nxf3+ $17 19. Bxf3 Bxf3 20. Nxf6+ Rxf6) 19. Rxf3 $4 {[%emt 0:03:48][%mdl 8192]} Nxf3+ $19 {[%emt 0:00:37]} 20. Bxf3 {[%emt 0:00:09]} Qxf3 {[%emt 0:00:34]} 21. b6 {[%emt 0:00:42]} cxb6 {[%emt 0:04:46]} 22. cxb6 {[%emt 0:00:43]} Bb8 {[%emt 0:01:05]} 23. Qb3+ {[%emt 0:02:09]} d5 {[%emt 0:03:00] [#] aiming for ...exf4.} 24. Ng5 {[%emt 0:02:52]} Qh5 {[%emt 0:02:16]} 25. fxe5 {[%emt 0:02:36]} (25. Ne6 {was called for.} Rc8 26. Kg2) 25... Bxe5 {[%emt 0:01:00] Black is clearly winning.} 26. d4 {[%emt 0:00:06]} Bd6 {[%emt 0:00:52]} 27. Kg2 {[%emt 0:01:55]} h6 {[%emt 0:01:59]} 28. Ne6 {[%emt 0:00:28]} Ra3 {[%emt 0:03:09]} 29. N2f4 {[%emt 0:01:27]} Rxb3 {[%emt 0:00:55] Weighted Error Value: White=0.80/Black=0.41  Loses game:     	White=1     	---        Mistake:       	White=2     	Black=1      Inaccurate:     	White=3     	Black=1      OK:         	White=8     	Black=9      Best:        	---       	Black=2} 0-1

[Event "FIDE WSTC Open 50 2025"]
[Site "Prague"]
[Date "2025.02.18"]
[Round "2.33"]
[White "Csiszar, Csaba"]
[Black "Zimmermann, Luc"]
[Result "1-0"]
[Annotator "TA"]
[ECO "A48"]
[WhiteElo "2378"]
[BlackElo "2177"]
[PlyCount "113"]
[EventDate "2025.02.17"]
[EventType "team-tourn"]
[EventCountry "CZE"]
[SourceTitle "playchess.com"]
[Source "ChessBase"]
[SourceQuality "1"]
[TimeControl "40/5400+30:1800+30"]

{[%evp 20,113,-2,2,0,-3,0,0,0,0,0,0,0,0,0,0,0,0,0,0,0,0,4,2,5,5,10,9,8,8,16,13,42,27,39,36,41,0,43,38,48,38,43,9,2,0,117,150,120,141,318,318,318,318,318,21,21,21,24,24,398,398,398,398,412,412,2415,1256,2443,1066,2151,1845,1641,1641,1641,1519,7036,1502,12845,12843,12848,12851,29974,29975,29979,29980,29979,29980,29985,29986,29985,29985,29985,29986,29987,29988]} 1. d4 {[%emt 0:00:03]} Nf6 {[%emt 0:00:03]} 2. Nf3 {[%emt 0:00:08]} g6 {[%emt 0:00:14]} 3. c4 {[%emt 0:00:05]} Bg7 {[%emt 0:00:07]} 4. Nc3 {[%emt 0:00:03]} O-O {[%emt 0:00:17]} 5. Bf4 {[%emt 0:00:04]} d5 {[%emt 0:00:20]} 6. Rc1 {[%emt 0:00:06]} Be6 {[%emt 0:00:43]} 7. e3 {[%emt 0:00:28]} dxc4 {[%emt 0:00:38]} 8. Ng5 {[%emt 0:00:07]} Bd5 {[%emt 0:00:15]} 9. e4 {[%emt 0:00:05]} h6 {[%emt 0:00:11]} 10. exd5 {[%emt 0:00:10]} hxg5 {[%emt 0:00:08]} 11. Bxg5 {[%emt 0:00:06]} Nxd5 {[%emt 0:00:08] D92: Grünfeld: 4 Nf3 Bg7 5 Bf4.} 12. Bxc4 {[%emt 0:00:10]} Nb6 {[%emt 0:00:06][%csl LRc4,LRd4] A dynamic duo of knights.} 13. Bb3 {[%emt 0:00:03]} Qxd4 {[%emt 0:00:13] The position is equal.} 14. Qxd4 {[%emt 0:01:27] White sacrificed a pawn} (14. Bxe7 $2 Re8 15. Qxd4 Bxd4 $19) 14... Bxd4 {[%emt 0:00:03]} 15. Nb5 {[%emt 0:00:25]} (15. Bxe7 $2 Re8 16. O-O Rxe7 $19) 15... Bxb2 {[%emt 0:00:57]} 16. Rc2 {[%emt 0:00:19]} Be5 {[%emt 0:00:08]} 17. Nxc7 {[%emt 0:00:17] 17.f4 might become the main line.} Bxc7 {[%emt 0:00:17]} 18. Rxc7 {[%emt 0:00:08]} Nc6 {[%emt 0:01:47]} 19. Rxb7 {[%emt 0:00:52][%cal Oh2h4]} (19. Bxe7 $2 Rfe8 20. Rxb7 Na5 $19 (20... Nxe7 $2 21. O-O $19) (20... Rxe7+ $2 21. Rxe7 Nxe7 22. h4 $19)) 19... e6 {[%emt 0:01:03]} 20. Bd1 $146 {[%emt 0:17:03]} ({Predecessor:} 20. Rc7 Nd4 21. Bd1 Nd5 22. Rc4 e5 23. h4 Rfc8 24. Rxc8+ Rxc8 25. Rh3 Rb8 26. Bb3 {½-½ Dreev,A (2657)-Sarana,A (2641) RUS-ch Higher League 72nd 2019 (9)}) 20... Rab8 {[%emt 0:34:19]} 21. Rxb8 {[%emt 0:11:32]} Rxb8 {[%emt 0:00:07]} 22. h4 {[%emt 0:07:57]} Nd5 {[%emt 0:14:46]} 23. Bb3 {[%emt 0:12:40]} Nd4 {[%emt 0:11:08]} 24. Rh3 {[%emt 0:00:24]} Nxb3 {[%emt 0:01:12]} 25. Rxb3 $11 {[%emt 0:00:22][%mdl 4096] Endgame KRB-KRN} Rc8 {[%emt 0:02:25]} 26. Rb7 {[%emt 0:05:24]} a6 {[%emt 0:05:54]} 27. Ra7 {[%emt 0:05:23]} Rc6 {[%emt 0:00:25]} 28. Bd2 {[%emt 0:01:56]} Kg7 {[%emt 0:12:11]} 29. g3 {[%emt 0:02:34]} Kf6 {[%emt 0:02:05]} 30. a4 {[%emt 0:01:50]} e5 {[%emt 0:02:23]} 31. a5 {[%emt 0:01:26]} Ke6 {[%emt 0:03:51]} 32. g4 {[%emt 0:00:45]} Nf4 {[%emt 0:03:16]} (32... f5 $11) 33. Bxf4 $1 $16 {[%emt 0:03:21]} exf4 {[%emt 0:00:02] KR-KR} 34. Ke2 {[%emt 0:00:07] White is more active.} f6 $2 {[%emt 0:03:38]} (34... Kf6 $16 {was worth a try.}) 35. Kf3 $18 {[%emt 0:03:55]} g5 {[%emt 0:00:14]} 36. h5 {[%emt 0:00:09][%cal Bh4h5,Bh5h6][%mdl 32]} f5 {[%emt 0:02:10] [#]} 37. Rg7 $2 {[%emt 0:06:48]} (37. h6 $1 $18 {[%cal Rh6h7]}) 37... Rc3+ $11 {[%emt 0:00:04]} 38. Kg2 {[%emt 0:00:06] Rg6+ is the strong threat.} fxg4 {[%emt 0:00:33]} 39. Rxg5 {[%emt 0:00:10]} g3 {[%emt 0:00:42][%mdl 8192] Black is now going downhill.} 40. fxg3 $18 {[%emt 0:00:45]} fxg3 {[%emt 0:00:00]} 41. h6 $1 {[%emt 0:33:28]} (41. Rxg3 Rc2+ 42. Kh3 Rc5 $11) 41... Kf7 {[%emt 0:17:59] [#] Repels h7} 42. Rg7+ $1 {[%emt 0:00:00]} (42. Rxg3 Rxg3+ 43. Kxg3 Kg6 $11) (42. h7 Rc8 $11) 42... Kf6 {[%emt 0:02:32]} (42... Kf8 $142 43. Rxg3 Rc2+ 44. Kf3 Kf7 45. Rg7+ Kf6) 43. Rg8 {[%emt 0:00:00][%cal Oh6h7]} ({Not} 43. Rxg3 Rxg3+ 44. Kxg3 Kg6 $11) 43... Rc7 {[%emt 0:00:42]} 44. Kxg3 {[%emt 0:00:00]} Rc3+ {[%emt 0:07:09]} 45. Kf4 {[%emt 0:00:00]} Rc4+ {[%emt 0:00:08]} 46. Ke3 {[%emt 0:00:00]} Rh4 {[%emt 0:00:06]} 47. Ra8 {[%emt 0:00:00]} Ke5 {[%emt 0:01:15]} 48. Rxa6 {[%emt 0:00:00]} Rh3+ {[%emt 0:00:09]} 49. Kf2 {[%emt 0:00:00] Rg6 would kill now.} Kf4 {[%emt 0:03:11]} 50. Rf6+ {[%emt 0:00:00]} Kg5 {[%emt 0:01:16]} 51. Rc6 {[%emt 0:00:00] White mates.} Kf4 {[%emt 0:00:28]} 52. a6 {[%emt 0:00:00][%cal Ba5a6,Ba6a7][%mdl 32]} Rh2+ {[%emt 0:01:38]} 53. Ke1 {[%emt 0:00:00]} Rh5 {[%emt 0:00:42]} 54. a7 {[%emt 0:00:00]} Re5+ {[%emt 0:00:17]} 55. Kd2 {[%emt 0:00:00]} Re8 {[%emt 0:00:33]} 56. h7 {[%emt 0:00:00]} Kg5 {[%emt 0:00:50]} 57. Rb6 {[%emt 0:00:00] Weighted Error Value: White=0.14 (very precise) /Black=0.95  Loses game:     	---       	Black=2      Missed win:     	White=1     	---        Mistake:       	---       	Black=2      Inaccurate:     	White=2     	Black=3      OK:         	White=16    	Black=12     Best:        	White=4     	Black=2      Strong:       	White=3     	---} 1-0

[Event "FIDE WSTC Open 50 2025"]
[Site "Prague"]
[Date "2025.02.18"]
[Round "2.34"]
[White "Frenken, Marcel"]
[Black "Czebe, Attila"]
[Result "0-1"]
[Annotator "TA"]
[ECO "A02"]
[WhiteElo "2064"]
[BlackElo "2255"]
[PlyCount "72"]
[EventDate "2025.02.17"]
[EventType "team-tourn"]
[EventCountry "CZE"]
[SourceTitle "playchess.com"]
[Source "ChessBase"]
[SourceQuality "1"]
[TimeControl "40/5400+30:1800+30"]

{[%evp 9,72,3,33,26,34,12,20,18,14,12,27,6,26,37,40,29,28,-15,26,-15,-1,-11,-12,-24,-23,-19,-21,-10,-1,-33,-7,-90,-84,-105,-99,-94,-99,-120,-124,-133,-102,-118,-116,-217,-227,-218,-192,-192,-181,-233,-226,-306,-299,-306,-306,-302,-304,-383,-386,-393,-349,-562,-350,-326,-240]} 1. f4 {[%emt 0:00:03]} b6 {[%emt 0:00:54]} 2. e4 {[%emt 0:00:50]} Bb7 {[%emt 0:00:11]} 3. d3 {[%emt 0:00:38]} g6 {[%emt 0:02:09]} 4. Nf3 {[%emt 0:00:11]} Bg7 {[%emt 0:00:04]} 5. c3 {[%emt 0:00:22]} Nf6 $146 {[%emt 0:02:27]} (5... e6 6. Be2 Ne7 7. O-O d6 8. Be3 Nd7 9. Nh4 O-O 10. Nd2 c5 11. Bf3 d5 {0-1 Schulte,H-Axt,C CT Queen 21952 2019}) 6. Be2 {[%emt 0:00:13] B00: Queen's Fianchetto Defence, Nimzowitsch Defence.} O-O {[%emt 0:00:08]} 7. O-O {[%emt 0:00:12]} c5 {[%emt 0:00:08]} 8. Na3 {[%emt 0:00:46] The position is equal.} Nc6 {[%emt 0:00:33]} 9. Qe1 {[%emt 0:00:25]} Ne8 {[%emt 0:08:51]} 10. Be3 {[%emt 0:07:57]} d5 {[%emt 0:04:27]} 11. e5 {[%emt 0:15:37]} d4 {[%emt 0:00:57]} 12. cxd4 {[%emt 0:10:44]} Nxd4 {[%emt 0:01:37]} 13. Bxd4 {[%emt 0:00:57]} cxd4 {[%emt 0:00:04]} (13... Bxf3 $5 14. Be3 Bxe2 15. Qxe2 f6 $15) 14. Qf2 {[%emt 0:05:12]} f6 {[%emt 0:06:51]} 15. Nxd4 {[%emt 0:09:01]} Nc7 {[%emt 0:00:10] Wards off Ne6} 16. Bf3 {[%emt 0:15:26]} Bxf3 {[%emt 0:02:33]} (16... fxe5 17. Bxb7 exd4 18. Bxa8 Qxa8 19. Qe1 $18) 17. Nxf3 {[%emt 0:00:27]} fxe5 {[%emt 0:00:14]} 18. fxe5 {[%emt 0:00:16]} Bxe5 {[%emt 0:03:56][%cal Of8f3]} 19. Nc4 {[%emt 0:00:15]} Bg7 {[%emt 0:00:31]} 20. Qg3 {[%emt 0:04:55]} (20. Qe2 $11) 20... Ne6 $17 {[%emt 0:03:51][%cal Oe6f4] Black continues to play with concentration.} 21. Nce5 {[%emt 0:04:44]} Nd4 {[%emt 0:04:49]} 22. Rae1 {[%emt 0:01:39] Prevents Ne2+.} Nxf3+ {[%emt 0:00:46]} 23. gxf3 {[%emt 0:04:47]} Rc8 {[%emt 0:07:05]} 24. Rf2 {[%emt 0:01:25]} Qd5 {[%emt 0:04:18]} 25. a3 {[%emt 0:08:27]} Rf5 {[%emt 0:01:10] Black is more active.} 26. f4 {[%emt 0:02:29]} (26. Ng4 $17) 26... Bxe5 $19 {[%emt 0:01:07]} 27. fxe5 {[%emt 0:03:22]} Rxf2 {[%emt 0:00:08]} 28. Qxf2 {[%emt 0:01:17][%mdl 4096] Endgame KQR-KQR} Rf8 {[%emt 0:00:04]} 29. Qe3 {[%emt 0:00:54]} (29. Qd2 {was necessary.}) 29... Rf3 $40 {[%emt 0:00:15][%mdl 128] Black wants a kill.} 30. Qg5 {[%emt 0:00:35]} Qd4+ {[%emt 0:03:02]} (30... Rxd3 31. Qxe7 Qd4+ 32. Kh1 $19) 31. Kh1 {[%emt 0:00:24]} Qxd3 {[%emt 0:00:48]} ({Much less strong is} 31... Rxd3 32. Qxe7 Qf2 (32... Qxb2 $2 {perishes.} 33. Rf1 $18) 33. Qe6+ Kg7 34. Qf6+ Qxf6 35. exf6+ Kxf6 36. Rc1 $19) 32. Qg2 {[%emt 0:00:55] Against Rf1+} Kg7 {[%emt 0:01:30]} 33. e6 {[%emt 0:00:13]} Qf5 {[%emt 0:00:46]} 34. Kg1 {[%emt 0:00:36]} h5 {[%emt 0:01:11]} 35. Qd2 $2 {[%emt 0:00:35] [#]} (35. Qe2) 35... Qg4+ {[%emt 0:02:06]} 36. Kh1 {[%emt 0:00:29]} Qf4 {[%emt 0:00:13] Weighted Error Value: White=0.37/Black=0.21 (precise)   Mistake:       	White=4     	---        Inaccurate:     	White=4     	Black=3      OK:         	White=6     	Black=14     Best:        	White=2     	Black=2} 0-1

[Event "FIDE WSTC Open 50 2025"]
[Site "Prague"]
[Date "2025.02.18"]
[Round "2.35"]
[White "Horvath, Peter"]
[Black "Van der Zwet, Bart"]
[Result "1/2-1/2"]
[Annotator "TA"]
[ECO "D36"]
[WhiteElo "2354"]
[BlackElo "1998"]
[PlyCount "97"]
[EventDate "2025.02.17"]
[EventType "team-tourn"]
[EventCountry "CZE"]
[SourceTitle "playchess.com"]
[Source "ChessBase"]
[SourceQuality "1"]
[TimeControl "40/5400+30:1800+30"]

{[%evp 24,97,34,27,32,18,34,14,33,31,37,25,49,50,35,43,51,32,23,24,34,32,29,24,19,18,25,12,8,9,7,7,7,10,11,16,22,13,28,20,44,4,25,26,28,12,13,1,4,0,25,34,37,8,21,-25,-21,-60,-52,-47,-51,-61,0,0,0,0,0,0,0,0,0,0,0,0,0,0]} 1. d4 {[%emt 0:00:04]} Nf6 {[%emt 0:00:10]} 2. c4 {[%emt 0:00:15]} e6 {[%emt 0:00:18]} 3. Nc3 {[%emt 0:00:15]} d5 {[%emt 0:00:53]} 4. cxd5 {[%emt 0:00:56]} exd5 {[%emt 0:00:14]} 5. Bg5 {[%emt 0:00:34]} c6 {[%emt 0:00:17]} 6. Qc2 {[%emt 0:01:09]} Be7 {[%emt 0:03:00]} 7. e3 {[%emt 0:00:46]} Nbd7 {[%emt 0:03:38]} 8. Bd3 {[%emt 0:00:25]} O-O {[%emt 0:03:43]} 9. Nf3 {[%emt 0:00:15]} Re8 {[%emt 0:01:44]} 10. O-O {[%emt 0:00:19]} h6 {[%emt 0:02:09]} 11. Bf4 {[%emt 0:02:36]} Nf8 {[%emt 0:02:57]} 12. h3 {[%emt 0:03:44]} Bd6 {[%emt 0:03:59] 12...Bd6 scores better than 12...Ne6.} 13. Ne5 {[%emt 0:05:34]} Qe7 {[%emt 0:07:09] D36: Queen's Gambit Declined: Exchange Variation: Main line (5 Bg5 c6 6 Qc2).} 14. Rab1 {[%emt 0:04:46]} N6d7 {[%emt 0:06:42]} 15. Nxd7 {[%emt 0:03:07]} Nxd7 {[%emt 0:03:17]} 16. Bxd6 {[%emt 0:03:10]} Qxd6 {[%emt 0:00:10]} 17. b4 {[%emt 0:00:38][%cal Bb2b4,Bb4b5][%mdl 32]} Nf6 $146 {[%emt 0:04:32]} (17... b5 18. e4 a6 19. e5 Qe7 20. f4 f6 21. Ne2 Bb7 22. Ng3 Nb6 23. Nf5 Qc7 24. exf6 gxf6 25. Nxh6+ Kh8 26. Qf2 {1-0 Zoltek,T (2218)-Drazek,W (2019) Polanica Zdroj op Seniors 44th 2008 (7.1)}) 18. b5 {[%emt 0:06:09]} c5 {[%emt 0:04:24]} 19. dxc5 {[%emt 0:00:12]} Qxc5 {[%emt 0:00:22]} 20. Ne2 {[%emt 0:04:34]} Qxc2 {[%emt 0:03:46]} 21. Bxc2 {[%emt 0:00:13]} Be6 {[%emt 0:00:40]} 22. Bb3 {[%emt 0:16:09]} Rac8 {[%emt 0:00:14]} 23. Rbc1 {[%emt 0:00:13]} Kf8 {[%emt 0:01:42]} 24. a4 {[%emt 0:22:02]} Ke7 {[%emt 0:03:10]} 25. f3 {[%emt 0:00:53]} Rxc1 {[%emt 0:01:18]} 26. Rxc1 {[%emt 0:00:08]} Rc8 {[%emt 0:00:55]} 27. Rd1 {[%emt 0:00:10]} Rc5 {[%emt 0:01:21]} 28. Kf2 {[%emt 0:01:20]} a6 {[%emt 0:07:48]} 29. bxa6 {[%emt 0:04:44]} bxa6 {[%emt 0:00:07]} 30. g4 {[%emt 0:00:49]} Bd7 {[%emt 0:07:00]} 31. h4 {[%emt 0:04:05]} Be6 {[%emt 0:04:45]} 32. Rd4 {[%emt 0:03:13]} Ne8 {[%emt 0:05:35]} 33. Rb4 {[%emt 0:03:50]} Kd6 {[%emt 0:07:31]} 34. Nd4 {[%emt 0:00:58]} Kc7 {[%emt 0:00:28] Against Rb6} 35. Bd1 {[%emt 0:04:36]} Bd7 {[%emt 0:01:07]} 36. Rb2 {[%emt 0:02:53]} Rc4 {[%emt 0:03:32]} 37. Bb3 {[%emt 0:00:52]} Rb4 {[%emt 0:00:12]} 38. Rc2+ {[%emt 0:00:36]} Kd6 {[%emt 0:00:36]} 39. a5 {[%emt 0:00:43]} (39. Rd2 {is more appropriate.}) 39... Nc7 $11 {[%emt 0:00:33][%cal Oh6h5]} 40. Rd2 {[%emt 0:00:25]} Nb5 {[%emt 0:01:20] [#]} 41. Bd1 {[%emt 0:14:47]} Nxd4 {[%emt 0:03:12]} 42. exd4 {[%emt 0:00:08]} Ba4 {[%emt 0:01:15]} (42... Bb5 $15) 43. Bxa4 {[%emt 0:03:38] The position is equal.} Rxa4 {[%emt 0:00:18][%mdl 4096] Endgame KR-KR} 44. Rb2 {[%emt 0:00:04]} Rxa5 {[%emt 0:01:50]} 45. Rb7 {[%emt 0:00:08]} Ke6 {[%emt 0:00:25]} 46. Rb6+ {[%emt 0:00:22]} Kd7 {[%emt 0:00:36]} 47. Rb7+ {[%emt 0:00:17]} Ke6 {[%emt 0:00:05]} 48. Rb6+ {[%emt 0:00:39]} Kd7 {[%emt 0:00:03] White must now prevent ...Kc7.} 49. Rb7+ {[%emt 0:01:38] Weighted Error Value: White=0.09 (flawless) /Black=0.07 (flawless)   Mistake:       	White=1     	Black=1      Inaccurate:     	White=3     	---        OK:         	White=16    	Black=13     Best:        	---       	Black=3} 1/2-1/2

[Event "FIDE WSTC Open 50 2025"]
[Site "Prague"]
[Date "2025.02.18"]
[Round "2.36"]
[White "Mengerink, Ynze"]
[Black "Krizsany, Laszlo"]
[Result "0-1"]
[Annotator "TA"]
[ECO "B02"]
[WhiteElo "2101"]
[BlackElo "2303"]
[PlyCount "102"]
[EventDate "2025.02.17"]
[EventType "team-tourn"]
[EventCountry "CZE"]
[SourceTitle "playchess.com"]
[Source "ChessBase"]
[SourceQuality "1"]
[TimeControl "40/5400+30:1800+30"]

{[%evp 10,102,77,36,106,61,52,42,39,-51,-49,-51,14,0,23,22,22,18,18,11,4,7,6,-29,-31,-23,-29,-29,-43,-39,-43,-50,-41,-38,-38,-59,-31,-64,0,-38,-30,-52,-36,-40,-45,-47,-39,-80,-70,-68,-72,-51,-54,-48,-51,-125,-52,-139,-129,-122,-130,-461,-455,-467,-467,-467,-463,-467,-467,-452,-335,-426,0,-345,-334,-450,-445,-432,-301,-433,-427,-421,-395,-666,-533,-1096,-1086,-921,-845,-1398,-718,-1208,-1095,-1219,-1218]} 1. e4 {[%emt 0:00:07][%cal Be2e4,Be4e5][%mdl 32]} Nf6 {[%emt 0:00:08]} 2. Nc3 {[%emt 0:00:16][%cal Bb1c3,Bc3e2,Be2d4][%mdl 32]} d5 {[%emt 0:00:08]} 3. e5 {[%emt 0:00:17]} Ne4 {[%emt 0:00:08]} 4. Nce2 {[%emt 0:00:17]} d4 {[%emt 0:00:40]} 5. c3 {[%emt 0:01:53]} Nc6 {[%emt 0:00:27]} 6. Nf3 {[%emt 0:08:00][%cal Re2d4]} Bg4 $1 {[%emt 0:03:58] The main line 6...Bg4 scores better than 6...dxc3. B02: Alekhine's Defence: Chase Variation and lines with early Nc3.} (6... dxc3 $14 7. Nxc3 Bf5) 7. Nexd4 {[%emt 0:07:11]} (7. Nfxd4 $6 Nxe5 8. Qc2 Nd6 $11) 7... Nxe5 {[%emt 0:05:33]} 8. Qa4+ $146 {[%emt 0:09:25]} (8. Qe2 Qd5 9. Nb5 O-O-O 10. c4 Qe6 11. d4 Ng6 12. d5 Qf5 13. Nbd4 Qe5 14. Nxe5 Bxe2 15. Nxg6 Bxf1 16. Nxh8 Bxc4 17. Nxf7 Rxd5 {1-0 Schmaltz,R (2529)-Gikas,A (2254) Bundesliga 0203 2002 (15.7)}) 8... Bd7 {[%emt 0:03:03] White is slightly better.} 9. Bb5 {[%emt 0:14:06]} (9. Qc2 $14 Nxf3+ 10. Nxf3) 9... Nd3+ $15 {[%emt 0:03:39]} 10. Ke2 {[%emt 0:01:55][%csl Oc1] White has a bad bishop} Nf4+ {[%emt 0:16:03]} (10... Nexf2 $6 11. Bxd7+ Qxd7 12. Qxd7+ Kxd7 13. Rf1 $14) (10... Ndxf2 $2 11. Ne5 c6 (11... Nxh1 12. Bxd7+) 12. Ndxc6 $18) (10... Nxc1+ $1 $15 11. Rhxc1 c6) 11. Kf1 $11 {[%emt 0:07:22] [#] aiming for Bxd7+.} Nd6 {[%emt 0:06:13]} (11... Nd3 $5) 12. Bxd7+ {[%emt 0:05:29]} Qxd7 {[%emt 0:00:23]} 13. Qxd7+ {[%emt 0:00:40]} Kxd7 {[%emt 0:00:03]} 14. Ne5+ {[%emt 0:00:28]} Ke8 {[%emt 0:01:49]} 15. d3 {[%emt 0:00:17]} Ng6 {[%emt 0:06:11]} 16. Nc4 {[%emt 0:04:57]} Nxc4 {[%emt 0:08:18]} 17. dxc4 {[%emt 0:00:59]} e5 {[%emt 0:01:56]} 18. Nf5 {[%emt 0:07:23]} Kd7 {[%emt 0:03:17]} 19. g3 {[%emt 0:07:48]} Ke6 {[%emt 0:01:03]} 20. Ne3 {[%emt 0:00:05]} Rd8 {[%emt 0:08:54]} 21. Ke2 {[%emt 0:00:46]} f5 {[%emt 0:02:28]} 22. b4 {[%emt 0:05:34]} Be7 {[%emt 0:02:43]} 23. Nd5 {[%emt 0:01:43]} Rd7 {[%emt 0:02:14]} (23... Bd6 $1 $15 24. Rd1 c6) 24. Nxe7 {[%emt 0:01:02]} Nxe7 {[%emt 0:00:47]} 25. Be3 {[%emt 0:01:49][%cal Oh1d1]} Rhd8 {[%emt 0:01:16]} 26. Rad1 {[%emt 0:00:13]} Nc8 {[%emt 0:01:46]} 27. Rxd7 {[%emt 0:03:36]} Rxd7 {[%emt 0:00:06]} 28. Rd1 {[%emt 0:00:15]} Rxd1 {[%emt 0:05:52]} 29. Kxd1 $17 {[%emt 0:00:03][%mdl 4096] Endgame KB-KN} a6 {[%emt 0:04:22]} 30. Kd2 {[%emt 0:01:07]} Nd6 {[%emt 0:01:26]} 31. Kd3 {[%emt 0:01:23]} Nf7 {[%emt 0:01:24]} 32. c5 {[%emt 0:02:14] [#] White is on the road to losing.} (32. f4 $15) 32... c6 {[%emt 0:01:26]} ({Black should play} 32... e4+ $1 $17 33. Ke2 Kd5) 33. c4 {[%emt 0:01:47]} (33. f3 $15) 33... g5 {[%emt 0:00:25]} 34. f3 {[%emt 0:01:25]} h5 {[%emt 0:01:06]} 35. h4 $2 {[%emt 0:03:11][%mdl 8192]} (35. f4 $17) 35... gxh4 $19 {[%emt 0:02:33]} 36. gxh4 {[%emt 0:00:04]} f4 {[%emt 0:00:06]} (36... Nh8 37. Bd2 $17) 37. Bf2 {[%emt 0:01:45]} Nh6 {[%emt 0:00:11]} ({Weaker is} 37... Kf5 38. Be1 $17) 38. Be1 {[%emt 0:01:15]} Nf5 {[%emt 0:02:09]} 39. Bf2 {[%emt 0:00:19]} Kf6 {[%emt 0:01:58]} 40. Be1 {[%emt 0:00:34]} Ke6 {[%emt 0:01:35]} 41. Bf2 $1 {[%emt 0:31:26]} Ne7 {[%emt 0:30:50]} 42. Ke4 {[%emt 0:00:00]} Ng8 {[%emt 0:00:00]} 43. Be1 {[%emt 0:00:00]} Nf6+ {[%emt 0:00:00]} 44. Kd3 {[%emt 0:00:00]} Kf5 {[%emt 0:00:00]} 45. Bc3 {[%emt 0:00:00]} e4+ {[%emt 0:00:00]} 46. fxe4+ $2 {[%emt 0:00:00]} (46. Ke2 Ng8 47. fxe4+ Kxe4 48. a4) 46... Nxe4 {[%emt 0:00:00] Black is clearly winning.} 47. Bd4 {[%emt 0:00:00]} Ng3 {[%emt 0:00:00]} 48. Bc3 {[%emt 0:00:00]} Kg4 {[%emt 0:00:00]} 49. Bf6 {[%emt 0:00:00]} Kf3 {[%emt 0:00:00] and ...Kg2 should not be overlooked} 50. Bg5 {[%emt 0:00:00]} Nf5 {[%emt 0:00:00]} 51. Bf6 {[%emt 0:00:00]} Kg2 {[%emt 0:00:00] Weighted Error Value: White=0.69/Black=0.28 (precise)   Loses game:     	White=1     	---        Mistake:       	White=4     	Black=3      Inaccurate:     	White=8     	Black=1      OK:         	White=6     	Black=14     Best:        	White=2     	Black=7      Strong:       	White=1     	---} 0-1